{"text_format":"1","workbook":"xlsx","n_sheets":8,"sheets":["Gliederung","Verfahrensdaten","Ausführungskosten","Verfahrenskosten","Kennzahlen","Wertschöpfungsberechnung","Wertschöpfungsbilanz","Allg. Wertschöpfungsmodell"],"not_rendered":{"charts":2,"images":0,"macros":1,"external_links":0,"defined_names":5,"comments":0,"pivot_tables":0},"unopened":[],"bounds":{"document_bytes":16777216,"sheet_cells":100000,"rows_first":2000,"rows_last":500,"rows_between":2000,"halvings":0,"cell_chars":16384,"cell_head_chars":4096},"cells_cut":0,"cells_raw":0,"read":"whole","date_system":"1900"}

{"sheet":"Gliederung","index":0,"n_rows":5,"n_cols":3,"rows_kept":5,"cut":false,"hidden":false,"merged":[[4,2,4,7]]}
[]
[]
[]
[]
[null,null,"Wählen sie die gewünschte Ansicht"]

{"sheet":"Verfahrensdaten","index":1,"n_rows":73,"n_cols":8,"rows_kept":73,"cut":false,"hidden":false,"merged":[[58,2,58,5],[60,0,60,5],[20,0,20,1],[18,2,18,5],[19,2,19,5],[20,2,20,5],[29,0,29,1],[29,2,29,5],[31,0,31,1],[51,0,51,1],[51,2,51,5],[24,0,24,5],[22,0,22,1],[22,2,22,5],[21,0,21,1],[21,2,21,5],[26,2,26,5],[27,0,27,1],[27,2,27,5],[30,0,30,1],[30,2,30,5],[25,0,25,5],[32,0,32,5],[39,0,39,1],[10,0,10,1],[16,2,16,5],[17,2,17,5],[12,0,12,1],[8,2,8,5],[9,2,9,5],[10,2,11,5],[12,2,13,5],[7,7,9,10],[17,0,17,1],[5,0,5,5],[15,0,15,5],[16,0,16,1],[42,0,42,1],[42,2,42,5],[40,0,40,5],[28,2,28,5],[26,0,26,1],[31,2,31,5],[28,0,28,1],[41,0,41,1],[41,2,41,5],[33,0,33,1],[33,2,33,5],[39,2,39,5],[34,0,34,1],[35,2,35,5],[36,2,36,5],[37,2,37,5],[38,2,38,5],[34,2,34,5],[7,0,7,5],[8,0,8,1],[9,0,9,1],[49,0,49,1],[49,2,49,5],[43,0,43,1],[43,2,43,5],[48,0,48,1],[48,2,48,5],[44,0,44,5],[45,0,45,1],[45,2,45,5],[46,0,46,1],[46,2,46,5],[47,0,47,1],[47,2,47,5],[50,0,50,1],[50,2,50,5],[53,0,53,1],[54,2,54,5],[55,2,55,5],[52,0,52,1],[52,2,52,5],[66,0,66,1],[66,2,66,5],[64,0,64,1],[53,2,53,5],[64,2,64,5],[65,2,65,5],[61,0,61,1],[61,2,61,5],[62,0,62,1],[62,2,62,5],[63,0,63,1],[63,2,63,5],[56,2,56,5],[57,2,57,5],[59,0,59,1],[59,2,59,5],[58,0,58,1],[67,0,67,1],[67,2,67,5],[68,0,68,1],[68,2,68,5],[69,0,69,5],[70,0,70,1],[70,2,70,5],[72,0,72,1],[72,2,72,5],[71,0,71,1],[71,2,71,5]]}
[]
[]
[]
[]
[]
["Datenblatt zur Erfassung notwendiger Verfahrensdaten"]
[]
["Allgemeine Verfahrensdaten",null,null,null,null,null,null,"Hinweis:\nEinzelne Eingabebereiche sind mit Kommentaren versehen, deren Vorgaben zwingend einzuhalten sind."]
["Name des Verfahrens",null,"Oberthal-Gronig"]
["Art des Verfahrens",null,"Verfahren nach §91 ff. FlurbG"]
["Hauptzwecke",null,"Verbesserung der Arbeits- und Produktionsbedingungen in der Land- und Forstwirtschaft, Beseitigung der Besitzzersplitterung"]
[]
["Nebenzwecke",null,"Naturschutzbelange, Flächenmanagement Hochwasserschutz"]
[]
[]
["Daten zur Prognose der Verfahrens- und Ausführungskosten"]
["Anzahl der Ordnungsnummern",null,1220]
["Gesamte Verfahrensfläche [ha]",null,1170.19]
[null,"Landwirtschaftliche Fläche [ha]",828.75]
[null,"Davon Waldfläche [ha]",242.56]
["Anzahl Baumaßnahmen im Rahmen des WuG-Plans nach §41 FlurbG / Ausbauplan",null,18]
["Aktualität des Grundbuchs",null,"Grundbuch lückenhaft"]
["Vermessungstechnische Bearbeitung",null,"Bewirtschaftungsanzeige"]
[]
["Daten zur Prognose der Verfahrenswirkungen"]
["Daten zur Neuordnung der Verfahrensfläche"]
["Neugeordnete landwirtschaftliche Fläche [ha]",null,{"$f":"IF(C10=\"Verfahren nach §91 ff. FlurbG\",C19*0.98,C19*0.93)","v":812.17499999999995}]
["Neugeordnete Waldfläche [ha]",null,{"$f":"IF(C10=\"Verfahren nach §91 ff. FlurbG\",C20*0.98,C20*0.93)","v":237.7088}]
["Anzahl der Flurstücke (Alt)",null,4890]
["Anzahl der Flurstücke (Neu)",null,2476]
["Anzahl der Landwirte im Verfahren",null,13]
["Zusammenlegungsverhältnis Besitzstand",null,"3:1"]
["Daten zur Vermessung"]
["Fläche der Neuvermessung [ha]"]
["Qualität des vorgefundenen Katasters"]
[null,"Urkataster [%]"]
[null,"Neuvermessung vor 1960 [%]"]
[null,"Neuvermessung 1960-1980 [%]"]
[null,"Neuvermessung nach 1980 [%]"]
["Personalkostensatz/Stunde (bei §91 ff. FlurbG)",null,{"$f":"IF(Verfahrenskosten!G7=1,ROUND(320/8,0),ROUND(275/8,0))","v":34}]
["Daten für Wertschöpfungsbeiträge der Forstwirtschaft"]
["Durchschnittlicher Holzeinschlag vor der Flurbereinigung [Fm/ha]",null,2]
["Durchschnittliche Steigerung der Holznutzung nach der Flurbereinigung Δ [Fm/ha]",null,2]
["Gesamteinschlag nach der Flurbereinigung [Fm/ha]",null,{"$f":"C42+C43","v":4}]
["Daten für Wertschöpfungsbeiträge des Natur- und Umweltschutzes sowie der Landespflege"]
["Ausgewiesene Gewässerschutzstreifen/Retentionsflächen an Bachläufen, Überführung der Flächen in öffentliches Eigentum [ha]",null,18]
["Sachwert weiterer wasserregulierender Maßnahmen [€]",null,0]
["Offengehaltene Kulturlandschaft [ha]",null,11.5]
["Übertragung von Flächen des Natur- und Umweltschutzes an die Kommune etc. [ha]",null,24.1]
["Aufforstungsfläche [ha]",null,0]
["Waldrandaufbau [ha]",null,0]
["Waldumbaufläche hin zu neuen Bewirtschaftungsmöglichkeiten[ha]",null,10]
["Wegebau und -Sanierung in Waldgebieten [ha]",null,0]
["Initialpflegekosten Landespflege Flurbereinigung [€]"]
[null,"Pflegeintensitätsstufe 1 [€]",0]
[null,"Pflegeintensitätsstufe 2 [€]",0]
[null,"Pflegeintensitätsstufe 3 [€]",0]
[null,"Pflegeintensitätsstufe 4 [€]",54673.47]
["Unterhaltungskosten der landespflegerischen Maßnahmen [€]",null,12750]
["Fläche mit Biotopkartierung vor Flurbereinigung [ha]",null,0]
["Daten für Wertschöpfungsbeiträge für die Allgemeinheit, Region und Erholung"]
["Sachwert Naturschutzprojekte durch Dritte in Folge des Flächenmanagements [€]",null,0]
["Sachwert kommunaler Planungen in Folge des Flächenmanagements [€]",null,4671301.45]
["Planungskosten Wegebau gemäß §48 HOAI",null,114801.55]
["Lokaler/Örtlicher Hochwasserschutz"]
[null,"jährlich vermiedene Schäden [€]",0]
["Sachwert Erholungseinrichtungen in Ausführungskosten [€]",null,3142.75]
["Sachwert Erholungseinrichtungen durch Dritte finanziert [€]",null,0]
["Anzahl errichteter Windkraftanlagen auf Privatbesitz in Folge der Flurbereinigung",null,1]
["Daten für die Wertschöpfungsbeiträge der Sicherung rechtlicher Verhältnisse sowie Vorteile für die öffentliche Hand"]
["Durchschnittlicher Bodenwert landwirtschaftlicher Nutzflächen [€/m²]",null,0.65]
["Unterhaltungskosten der gemeinschaftlichen Anlagen [€]",null,0]
["Zeitliche Dauer der (temporären) Unterhaltung gemeinschaftlicher Anlagen durch die TG in Monaten [d]",null,0]

{"sheet":"Ausführungskosten","index":2,"n_rows":19,"n_cols":3,"rows_kept":19,"cut":false,"hidden":false,"merged":[[1,1,1,2],[21,2,22,2]]}
[]
[null,"Ausführungskosten nach Art der Maßnahme"]
[]
[null,"Maßnahmen","Ausführungskosten [€]"]
[null,"Wegebau",3455436.9]
[null,"Bauwerke",0]
[null,"Wasserwirtschaftliche Maßnahmen",0]
[null,"Dorferneuerung",0]
[null,"Begrünung, Landschaftspflege",54673.47]
[null,"Freizeit und Erholung",1032.33]
[null,"Vermessungskosten",0]
[null,"Wertermittlung",0]
[null,"Verwaltungskosten",12638.83]
[null,"Ausgleich von Nachteilen",2873.6]
[null,"Instandsetzungen zur Herstellung wertgleicher Abfindung",0]
[null,"Defizit des Landerwerbs der TG",0]
[null,"Sonstiges",43.1]
[]
[null,"Gesamtsumme Ausführungskosten",{"$f":"SUM(C5:C17)","v":3526698.2300000004}]

{"sheet":"Verfahrenskosten","index":3,"n_rows":42,"n_cols":8,"rows_kept":42,"cut":false,"hidden":false,"merged":[[7,3,9,3],[10,3,11,3],[12,3,13,3],[19,1,23,1],[12,1,13,1],[7,1,9,1],[19,2,23,2],[19,3,23,3],[26,5,27,6],[26,7,27,8],[14,0,18,0],[14,1,18,1],[14,2,18,2],[14,3,18,3],[23,7,24,8],[12,0,13,0],[12,2,13,2],[7,0,9,0],[7,2,9,2],[10,1,11,1],[10,0,11,0],[10,2,11,2],[5,5,5,8],[8,5,8,8],[9,5,9,8],[12,5,12,8],[13,5,13,8],[17,10,17,11],[29,0,29,2],[15,5,16,8],[17,5,17,8],[20,5,21,6],[20,7,21,8],[26,0,27,0],[26,1,27,1],[26,2,27,2],[26,3,27,3],[19,0,23,0],[24,1,25,1],[24,0,25,0],[24,2,25,2],[24,3,25,3],[23,5,24,6]]}
[]
[]
[]
[]
[]
[null,"Meilenstein","Bewertungsansatz","Nettoarbeitstage",null,"Personalkosten pro Nettoarbeitstag"]
[1,"Vorarbeiten und Einleitung","50 AT + 20 AT je 100 ha Verfahrensfläche",{"$f":"ROUND(50+20*(Verfahrensdaten!C18/100),0)","v":284},null,"Personalmischkostensatz Saarland",2,"Personalmischkostensatz BMS"]
[2,"Legitimation","Grundbuch relativ aktuell: 30 AT je 100 Ord.-Nr.\nGrundbuch lückenhaft: 60 AT je 100 Ord.-Nr.\nGrundbuch nicht aktuell: 90 AT je 100 Ord.-Nr.",{"$f":"ROUND(IF(Verfahrensdaten!C22=\"Grundbuch relativ aktuell\",30*(Verfahrensdaten!C17/100),IF(Verfahrensdaten!C22=\"Grundbuch lückenhaft\",60*(Verfahrensdaten!C17/100),IF(Verfahrensdaten!C22=\"Grundbuch nicht aktuell\",90*(Verfahrensdaten!C17/100),\"Fehler Schreibweise!\"))),0)","v":732}]
[null,null,null,null,null,"Prozentualer Aufschlag Sachkosten"]
[null,null,null,null,null,0.21360000000000001]
[3,"Wertermittlung","30 AT + 80 AT je 100 ha Waldfläche + 0,75 * (30 AT + 80 AT je 100 ha landwirtschaftliche Fläche)\nVerfahren nach § 91 ff. FlurbG: Faktor 0,75",{"$f":"ROUND(IF(Verfahrensdaten!C10=\"Verfahren nach §91 ff. FlurbG\",0.75*(30+80*(Verfahrensdaten!C20/100)+0.75*(30+80*(Verfahrensdaten!C19/100))),30+80*(Verfahrensdaten!C20/100)+0.75*(30+80*(Verfahrensdaten!C19/100))),0)","v":558}]
[]
[4,"Plan nach § 41\nAusbauplan","40 AT + 10 AT je Maßnahme",{"$f":"40+10*Verfahrensdaten!C21","v":220},null,"Prozentualer Aufschlag Overheadkosten"]
[null,null,null,null,null,8.6300000000000002E-2]
[5,"Vermessungs\ntechnische Bearbeitung","ohne Abmarkung: 80 AT je 100 ha Verfahrensfläche\npartielle Abmarkung: 160 AT je 100 ha Verfahrensfläche\nvollständige Abmarkung: 240 AT je 100 ha Verfahrensfläche\nVerfahren nach § 91 ff. FlurbG: 40 AT je 100 ha Verfahrensfläche",{"$f":"ROUND(IF(Verfahrensdaten!C23=\"Bewirtschaftungsanzeige\",40*(Verfahrensdaten!C18/100),IF(Verfahrensdaten!C23=\"ohne Abmarkung\",80*(Verfahrensdaten!C18/100),IF(Verfahrensdaten!C23=\"partielle Abmarkung\",160*(Verfahrensdaten!C18/100),IF(Verfahrensdaten!C23=\"vollständige Abmarkung\",240*(Verfahrensdaten!C18/100),\"Fehler Schreibweise!\")))),0)","v":468}]
[null,null,null,null,null,"Kosten externer Vergaben/Dienstleistungen im Rahmen der Verfahrenskosten"]
[]
[null,null,null,null,null,0]
[]
[6,"Planerische Arbeiten zur Landabfindung vor Planentwurf, Abfindung","100 AT + 150 AT je 100 Ord.-Nr. + 50 AT je 100 ha Verfahrensfläche",{"$f":"ROUND(100+150*(Verfahrensdaten!C17/100)+50*(Verfahrensdaten!C18/100),0)","v":2515}]
[null,null,null,null,null,"Gesamtsumme der Verfahrenskosten",null,{"$f":"(D30+D30*F10)+(F14*(D30+D30*F10))+F18","v":1957362.9730380001}]
[]
[]
[null,null,null,null,null,"Gesamtsumme der Ausführungskosten",null,{"$f":"Ausführungskosten!C19","v":3526698.2300000004}]
[7,"Ausbau und Finanzierung","20 AT + 10 AT je Maßnahme",{"$f":"20+10*Verfahrensdaten!C21","v":200}]
[]
[8,"Abschluss des Verfahrens","25 AT je 100 Ord.-Nr. + 10 AT je 100 ha Verfahrensfläche",{"$f":"ROUND(25*(Verfahrensdaten!C17/100)+10*(Verfahrensdaten!C18/100),0)","v":422},null,"∑",null,{"$f":"H24+H21","v":5484061.2030380005}]
[]
[]
["Summe direkter Personalkosten",null,null,{"$f":"IF(G7=1,(SUM(D7:D28)*320),IF(G7=2,(SUM(D7:D28)*275),\"FEHLER!\"))","v":1484725}]
[]
[]
[]
[null,1,{"$f":"D7/C42","v":5.2602333765512134E-2}]
[null,2,{"$f":"D8/C42","v":0.13558066308575661}]
[null,3,{"$f":"D11/C42","v":0.10335247268012594}]
[null,4,{"$f":"D13/C42","v":4.0748286719762918E-2}]
[null,5,{"$f":"D15/C42","v":8.6682719022041124E-2}]
[null,6,{"$f":"D20/C42","v":0.46582700500092611}]
[null,7,{"$f":"D25/C42","v":3.7043897017966287E-2}]
[null,8,{"$f":"D27/C42","v":7.8162622707908871E-2}]
[null,null,{"$f":"SUM(D7:D28)","v":5399}]

{"sheet":"Kennzahlen","index":4,"n_rows":55,"n_cols":21,"rows_kept":55,"cut":false,"hidden":false,"merged":[[50,7,50,8],[51,7,51,8],[52,7,52,8],[53,7,53,8],[54,5,54,8],[50,5,50,6],[51,5,51,6],[52,5,52,6],[53,5,53,6],[54,1,54,4],[50,2,50,3],[51,2,51,3],[52,2,52,3],[53,2,53,3],[47,1,47,2],[47,3,47,4],[47,5,47,6],[47,7,47,8],[49,1,49,3],[49,7,49,8],[49,5,49,6],[41,1,45,2],[41,3,45,4],[41,5,45,6],[41,7,45,8],[46,1,46,8],[40,1,40,2],[40,3,40,4],[40,5,40,6],[40,7,40,8],[39,1,39,8],[38,1,38,8],[33,13,39,15],[29,12,29,13],[30,12,30,13],[5,17,5,20],[6,18,6,20],[26,17,26,20],[27,17,27,20],[29,17,29,20],[5,1,5,8],[20,1,20,8],[6,12,6,13],[5,11,5,14],[34,1,34,4],[33,11,35,11],[35,1,35,4],[47,11,47,13],[48,11,48,13],[49,11,49,13],[30,17,30,20],[42,11,42,13],[44,11,44,13],[45,11,45,13],[46,11,46,13]]}
[]
[]
[]
[]
[]
[null,"Rentenbarwertfaktoren für jährlich nachschüssige Zahlungen (Hinz)",null,null,null,null,null,null,null,null,null,"Honorare für Grundleistungen bei Verkehsanlagen gem. §48 HOAI",null,null,null,null,null,"GNotKG - Gebührentabelle B"]
[null,null,null,null,null,null,null,null,null,null,null,null,"Honorarzone 1",null,null,null,null,null,"Faktor"]
[null,"Jahre",0.02,2.5000000000000001E-2,0.03,3.5000000000000003E-2,0.04,4.4999999999999998E-2,0.05,null,null,"Anrechenbare Kosten [€]","von","bis",null,null,null,"Wert bis…",0.5,1,2]
[null,1,0.98,0.97599999999999998,0.97099999999999997,0.96599999999999997,0.96199999999999997,0.95699999999999996,0.95199999999999996,null,null,25000,3882,4624,null,null,null,500,{"$f":"T9/2","v":7.5},15,{"$f":"T9*2","v":30}]
[null,10,8.9830000000000005,8.7520000000000007,8.5299999999999994,8.3170000000000002,8.1110000000000007,7.9130000000000003,7.7220000000000004,null,null,35000,4981,5933,null,null,null,1000,{"$f":"T10/2","v":9.5},19,{"$f":"T10*2","v":38}]
[null,15,12.849,12.381,11.938000000000001,11.516999999999999,11.118,10.74,10.38,null,null,50000,6487,7727,null,null,null,1500,11.5,23,46]
[null,20,16.350999999999999,15.589,14.877000000000001,14.212,13.59,13.007999999999999,12.462,null,null,75000,8759,10434,null,null,null,2000,13.5,27,54]
[null,25,19.523,18.423999999999999,17.413,16.481999999999999,15.622,14.827999999999999,14.093999999999999,null,null,100000,10839,12911,null,null,null,3000,16.5,33,66]
[null,30,22.396000000000001,20.93,19.600000000000001,18.391999999999999,17.292000000000002,16.289000000000001,15.372,null,null,150000,14634,17432,null,null,null,4000,19.5,39,78]
[null,35,24.998999999999999,23.145,21.486999999999998,20.001000000000001,18.664999999999999,17.460999999999999,16.373999999999999,null,null,200000,18106,21567,null,null,null,5000,22.5,45,90]
[null,40,27.355,25.103000000000002,23.114999999999998,21.355,19.792999999999999,18.402000000000001,17.158999999999999,null,null,300000,24435,29106,null,null,null,6000,25.5,51,102]
[null,45,29.49,26.832999999999998,24.518999999999998,22.495000000000001,20.72,19.155999999999999,17.774000000000001,null,null,500000,35622,42433,null,null,null,7000,28.5,57,114]
[null,50,31.423999999999999,28.361999999999998,25.73,23.456,21.481999999999999,19.762,18.256,null,null,750000,48001,57178,null,null,null,8000,31.5,63,126]
[null,null,null,null,null,null,null,null,null,null,null,1000000,59267,70597,null,null,null,9000,34.5,69,138]
[null,null,null,null,null,null,null,null,null,null,null,1500000,80009,95305,null,null,null,10000,37.5,75,150]
[null,"Rentenbarwertfaktoren für jährlich vorschüssige Zahlungen (analog BMS Consulting)",null,null,null,null,null,null,null,null,null,2000000,98962,117881,null,null,null,13000,41.5,83,166]
[null,null,null,null,null,null,null,null,null,null,null,3000000,133441,158951,null,null,null,16000,45.5,91,182]
[null,"Jahre",0.02,2.5000000000000001E-2,0.03,3.5000000000000003E-2,0.04,4.4999999999999998E-2,0.05,null,null,5000000,194094,231200,null,null,null,19000,49.5,99,198]
[null,1,1,1,1,1,1,1,1,null,null,7500000,262407,312573,null,null,null,22000,53.5,107,214]
[null,10,9.1620000000000008,8.9710000000000001,8.7859999999999996,8.6080000000000005,8.4350000000000005,8.2690000000000001,8.1080000000000005,null,null,10000000,324978,387107,null,null,null,25000,57.5,115,230]
[null,15,13.106,12.691000000000001,12.295999999999999,11.920999999999999,11.563000000000001,11.223000000000001,10.898999999999999,null,null,15000000,439179,523140]
[null,20,16.678000000000001,15.978999999999999,15.324,14.71,14.134,13.593,13.085000000000001,null,null,20000000,543619,647546,null,null,null,"Einsparungen Waldgrundstück (pauschal)"]
[null,25,19.914000000000001,18.885000000000002,17.936,17.058,16.247,15.494999999999999,14.798999999999999,null,null,25000000,641265,763860,null,null,null,415]
[null,30,22.844000000000001,21.454000000000001,20.187999999999999,19.036000000000001,17.984000000000002,17.021999999999998,16.140999999999998]
[null,35,25.498999999999999,23.724,22.132000000000001,20.701000000000001,19.411000000000001,18.247,17.193000000000001,null,null,"Herstellungskosten [€]","Planungskosten [€]",null,null,null,null,"Einsparungen Landgrundstück (spezifisch)"]
[null,40,27.902999999999999,25.73,23.808,22.102,20.584,19.23,18.016999999999999,null,null,{"$f":"Ausführungskosten!C5","v":3455436.9},{"$f":"1.19*(0.55*interpolation(N22,N23,L22,L23,L31))","v":114801.54512745573},null,null,null,null,{"$f":"ROUND(IF(Verfahrensdaten!C71=0.5,1.19*(120+T15)+1.5*T15,IF(Verfahrensdaten!C71=0.55,1.19*(120+T16)+1.5*T16,IF(Verfahrensdaten!C71=0.6,1.19*(120+T16)+1.5*T16,IF(Verfahrensdaten!C71=0.65,1.19*(120+T17)+1.5*T17,IF(Verfahrensdaten!C71=0.7,1.19*(120+T17)+1.5*T17,IF(Verfahrensdaten!C71=0.75,1.19*(2*T18+T18)+1.5*T18,IF(Verfahrensdaten!C71=0.8,1.19*(2*T18+T18)+1.5*T18,IF(Verfahrensdaten!C71=0.85,1.19*(2*T19+T19)+1.5*T19,IF(Verfahrensdaten!C71=0.9,1.19*(2*T19+T19)+1.5*T19,IF(Verfahrensdaten!C71=0.95,1.19*(2*T20+T20)+1.5*T20,IF(Verfahrensdaten!C71=1,1.19*(2*T20+T20)+1.5*T20,IF(Verfahrensdaten!C71=1.05,1.19*(2*T21+T21)+1.5*T21,IF(Verfahrensdaten!C71=1.1,1.19*(2*T21+T21)+1.5*T21,IF(Verfahrensdaten!C71=1.15,1.19*(2*T21+T21)+1.5*T21,IF(Verfahrensdaten!C71=1.2,1.19*(2*T21+T21)+1.5*T21,IF(Verfahrensdaten!C71=1.25,1.19*(2*T21+T21)+1.5*T21,IF(Verfahrensdaten!C71=1.3,1.19*(2*T21+T21)+1.5*T21,IF(Verfahrensdaten!C71=1.35,1.19*(2*T22+T22)+1.5*T22,IF(Verfahrensdaten!C71=1.4,1.19*(2*T22+T22)+1.5*T22,IF(Verfahrensdaten!C71=1.45,1.19*(2*T22+T22)+1.5*T22,IF(Verfahrensdaten!C71=1.5,1.19*(2*T22+T22)+1.5*T22,IF(Verfahrensdaten!C71=1.55,1.19*(2*T22+T22)+1.5*T22,IF(Verfahrensdaten!C71=1.6,1.19*(2*T22+T22)+1.5*T22))))))))))))))))))))))),0)","v":296}]
[null,45,30.08,27.504000000000001,25.254000000000001,23.283000000000001,21.548999999999999,20.018000000000001,18.663]
[null,50,32.052,29.071000000000002,26.501999999999999,24.277000000000001,22.341000000000001,20.651,19.169]
[null,null,null,null,null,null,null,null,null,null,null,"Hier die Herstellungskosten \"Wegebau\" angeben",null,"Hinweis:\nHier Funktion \"interpolation\" -> y1,y2 = untere/obere Planungskosten; x1,x2 untere/obere Herstellungskosten; xn zu interpolierender Wert der Herstellungskosten/anrechenbare Kosten; Rest unverändert lassen"]
[null,"GAP Flächenzahlungen in €/ha (Stand 2019)"]
[null,284]
[]
[]
[null,"Landschaftspflegerische Maßnahmen in der Flurbereinigung"]
[null,"Pflegeintensitätsstufe"]
[null,1,null,2,null,3,null,4]
[null,"Feldgehölz, Gebüsch, Bachuferwald, Erdwand, Quelle etc.",null,"Trockenmauern, Baumreihe, Strauchhecke etc.",null,"Grünland, z.B. Magerrasen, Feucht- und Nasswiesen, Krautstreifen etc.",null,"Obstbaumreihe, Streuobstwiese"]
[null,null,null,null,null,null,null,null,null,null,null,"Prämienkontrollen GAP"]
[]
[null,null,null,null,null,null,null,null,null,null,null,"Geprüfte landwirtschaftliche Betriebe pro Jahr"]
[null,null,null,null,null,null,null,null,null,null,null,0.06]
[null,"Prozentaufschläge ",null,null,null,null,null,null,null,null,null,"Lohnansatz für Mitarbeiter Landwirtschaft pro Stunde"]
[null,0.1,null,0.3,null,0.3,null,0.1,null,null,null,15]
[null,null,null,null,null,null,null,null,null,null,null,"Durchschnittsgröße landwirtschaftlicher Betrieb in ha"]
[null,"Fiktive Initialpflegekosten Planungsbüro",null,null,null,"Ersparte Planungskosten",null,"Ersparte Initialpflegekosten",null,null,null,64]
[null,null,"Pflegeintensitätsstufe 1",null,{"$f":"Verfahrensdaten!C55*(1+B48)","v":0},{"$f":"0.1*E51","v":0},null,{"$f":"E51-Verfahrensdaten!C55","v":0}]
[null,null,"Pflegeintensitätsstufe 2",null,{"$f":"Verfahrensdaten!C56*(1+D48)","v":0},{"$f":"0.1*E52","v":0},null,{"$f":"E52-Verfahrensdaten!C56","v":0}]
[null,null,"Pflegeintensitätsstufe 3",null,{"$f":"Verfahrensdaten!C57*(1+F48)","v":0},0,null,{"$f":"E53-Verfahrensdaten!C57","v":0}]
[null,null,"Pflegeintensitätsstufe 4",null,{"$f":"Verfahrensdaten!C58*(1+H48)","v":60140.817000000003},6014.0817000000006,null,{"$f":"E54-Verfahrensdaten!C58","v":5467.3470000000016}]
[null,"Summe ersparter Planungs- und Initialpflegekosten",null,null,null,{"$f":"SUM(F51:I54)","v":11481.428700000002}]

{"sheet":"Wertschöpfungsberechnung","index":5,"n_rows":60,"n_cols":14,"rows_kept":60,"cut":false,"hidden":false,"merged":[[46,1,47,1],[46,2,47,2],[46,3,47,3],[46,4,47,4],[46,5,47,5],[46,6,47,6],[47,7,47,11],[46,12,47,12],[28,6,29,6],[34,6,38,6],[38,7,38,8],[38,9,38,11],[43,7,43,11],[44,7,44,11],[45,7,45,11],[34,12,38,12],[34,7,36,11],[41,7,41,8],[41,9,41,11],[42,7,42,8],[42,9,42,11],[39,7,39,11],[40,7,40,11],[37,7,37,11],[22,1,23,1],[22,2,23,2],[22,3,23,3],[22,4,23,4],[22,5,23,5],[20,1,21,1],[20,2,21,2],[34,2,38,2],[34,1,38,1],[34,3,38,3],[34,4,38,4],[34,5,38,5],[28,1,29,1],[28,2,29,2],[28,3,29,3],[28,4,29,4],[28,5,29,5],[25,1,26,1],[25,2,26,2],[25,3,26,3],[25,4,26,4],[25,5,26,5],[18,6,19,6],[19,7,19,11],[16,6,17,6],[16,7,16,9],[16,4,17,4],[16,5,17,5],[16,10,16,11],[18,12,19,12],[25,6,26,6],[26,7,26,11],[25,12,26,12],[20,6,21,6],[21,7,21,11],[20,12,21,12],[22,6,23,6],[18,1,19,1],[18,2,19,2],[18,3,19,3],[16,1,17,1],[16,2,17,2],[16,3,17,3],[20,3,21,3],[20,4,21,4],[20,5,21,5],[18,4,19,4],[18,5,19,5],[12,1,13,1],[12,2,13,2],[15,7,15,11],[14,12,15,12],[14,4,15,4],[14,5,15,5],[14,6,15,6],[12,3,13,3],[12,4,13,4],[12,5,13,5],[12,6,13,6],[12,12,13,12],[13,7,13,11],[14,3,15,3],[14,2,15,2],[14,1,15,1],[48,12,49,12],[59,11,59,12],[31,13,40,13],[41,13,51,13],[52,13,57,13],[28,12,29,12],[29,7,29,11],[30,7,30,11],[9,13,30,13],[23,7,23,11],[22,7,22,8],[22,9,22,10],[22,12,23,12],[24,7,24,11],[16,12,17,12],[17,7,17,11],[31,7,31,11],[32,7,32,11],[33,7,33,11],[27,7,27,11],[51,7,51,11],[50,7,50,11],[52,7,52,11],[53,7,53,11],[5,1,5,12],[7,4,7,6],[8,7,8,11],[9,7,9,11],[10,1,11,1],[10,2,11,2],[10,3,11,3],[10,4,11,4],[10,5,11,5],[10,6,11,6],[10,12,11,12],[11,7,11,11],[54,7,54,11],[55,7,55,11],[56,7,56,11],[57,7,57,11],[48,1,49,1],[48,2,49,2],[48,3,49,3],[48,4,49,4],[48,5,49,5],[48,6,49,6],[48,7,48,11],[49,7,49,11]]}
[]
[]
[]
[]
[]
[null,"Wertschöpfungs-/Wirkungsanalyse für saarländische Flurbereinigungsverfahren"]
[]
[null,null,null,null,"Wirkungsdauer"]
[null,"Nr.","Wertschöpfungsbeitrag","Aktiv ? \"Ja\" / \"Nein\"","25 Jahre","50 Jahre","Einmalig","Berechnungsform",null,null,null,null,"Wertschöpfung"]
[null,1,"Bewirtschaftungsvorteile durch Neuordnung landwirtschaftlicher Nutzflächen","Ja",110,null,null,"x landwirtschaftliche Nutzfläche in ha",null,null,null,null,{"$f":"IF(D10=\"Ja\",(E10*Verfahrensdaten!C27)*Kennzahlen!G28,\"---\")","v":1451494.7947499999},{"$f":"SUM(M10:M31)","v":2899215.8685453599}]
[null,2,"Steigerung der Holznutzung","Ja",null,25,null,1,1,5,true,true,{"$f":"IF(D11=\"Ja\",IF(H11=5,(6*F11*Verfahrensdaten!C28)*Kennzahlen!G33,IF(H11=4,(5*F11*Verfahrensdaten!C28)*Kennzahlen!G33,IF(H11=3,(4*F11*Verfahrensdaten!C28)*Kennzahlen!G33,IF(H11=2,(3*F11*Verfahrensdaten!C28)*Kennzahlen!G33,IF(H11=1,(2*F11*Verfahrensdaten!C28)*Kennzahlen!G33,\"\"))))),\"---\")","v":265532.61504}]
[null,null,null,null,null,null,null,"x Waldfläche in ha"]
[null,3,"Bildung größerer Holzlose","Ja",null,5,null,2,null,null,null,null,{"$f":"IF(D13=\"Ja\",IF(H13=1,(2*F13*Verfahrensdaten!C28)*Kennzahlen!G33,IF(H13=2,(4*F13*Verfahrensdaten!C28)*Kennzahlen!G33,IF(H13=3,(6*F13*Verfahrensdaten!C28)*Kennzahlen!G33,IF(H13=4,(8*F13*Verfahrensdaten!C28)*Kennzahlen!G33,IF(H13=5,(10*F13*Verfahrensdaten!C28)*Kennzahlen!G33))))),\"---\")","v":106213.04601599999}]
[null,null,null,null,null,null,null,"x Gesamtnutzung auf Waldfläche in ha"]
[null,4,"Senkung der Rückekosten","Ja",null,{"$f":"IF(H15=1,0,IF(H15=2,1,IF(H15=3,2.5,IF(H15=4,4,IF(H15=5,10,\"\")))))","v":1},null,2,null,null,null,null,{"$f":"IF(D15=\"Ja\",IF(H15=1,0,IF(H15=2,(1*Verfahrensdaten!C44*Verfahrensdaten!C28)*Kennzahlen!G33,IF(H15=3,(2.5*Verfahrensdaten!C44*Verfahrensdaten!C28)*Kennzahlen!G33,IF(H15=4,(4*Verfahrensdaten!C44*Verfahrensdaten!C28)*Kennzahlen!G33,IF(H15=5,(10*Verfahrensdaten!C44*Verfahrensdaten!C28)*Kennzahlen!G33,\"---\"))))),\"---\")","v":21242.609203200002}]
[null,null,null,null,null,null,null,"Erschließungsgrad vor der Flurbereinigung, x Gesamtnutzung Holzeinschlag"]
[null,5,"Bewirtschaftungsvorteile durch verbessertes Wegenetz","Ja",{"$f":"IF(Verfahrensdaten!C10=\"Verfahren nach §91 ff. FlurbG\",20,40)","v":20},null,null,"Regelverfahren nach §§ 1 und 37 FlurbG\n40 €/ha",null,null,"Andere Verfahrensarten nach FlurbG\n20 €/ha",null,{"$f":"IF(D17=\"Ja\",(E17*Verfahrensdaten!C27)*Kennzahlen!G28,\"---\")","v":263908.14449999999}]
[null,null,null,null,null,null,null,"x landwirtschaftliche Nutzfläche in ha"]
[null,6,"Reduzierung der Fußwegezeiten","Ja",null,{"$f":"IF(H19=1,0,IF(H19=2,10,IF(H19=3,20,IF(H19=4,30,IF(H19=5,40,\"\")))))","v":10},null,2,null,null,null,null,{"$f":"IF(D19=\"Ja\",(F19*Verfahrensdaten!C28)*Kennzahlen!G33,\"---\")","v":53106.523007999996}]
[null,null,null,null,null,null,null,"Erschließungsgrad vor der Flurbereinigung, x Waldfläche in ha"]
[null,7,"Verbesserung der Bestandsqualität durch Zusammenlegung","Ja",null,{"$f":"IF(H21=1,0,IF(H21=2,10,IF(H21=3,20,IF(H21=4,30,IF(H21=5,40,\"\")))))","v":20},null,3,null,null,null,null,{"$f":"IF(D21=\"Ja\",(F21*Verfahrensdaten!C28)*Kennzahlen!G33,\"---\")","v":106213.04601599999}]
[null,null,null,null,null,null,null,"Zusammenlegungsverhältnis, x Waldfläche in ha"]
[null,8,"Reduzierung der Grundstücksrandeffekte","Ja",null,{"$f":"IF(H23=1,10,IF(H23=2,20,IF(H23=3,30,\"\")))","v":20},null,2,null,null,null,null,{"$f":"IF(D23=\"Ja\",(F23*Verfahrensdaten!C28)*Kennzahlen!G33,\"---\")","v":106213.04601599999}]
[null,null,null,null,null,null,null,"Formverbesserung der Grundstücke"]
[null,9,"Verbesserung des Waldzustandes durch Erstdurchforstung","Ja",null,null,200,"x Waldfläche in ha",null,null,null,null,{"$f":"IF(D25=\"Ja\",G25*Verfahrensdaten!C28,\"---\")","v":47541.760000000002}]
[null,10,"Erhöhung der Effizienz des Holztransports","Ja",null,{"$f":"IF(H26=1,3,IF(H26=2,6,IF(H26=3,9,IF(H26=4,12,IF(H26=5,15,\"\")))))","v":6},null,2,null,null,null,null,{"$f":"IF(D26=\"Ja\",(F26*Verfahrensdaten!C28)*Kennzahlen!G33,\"---\")","v":31863.913804800002}]
[null,null,null,null,null,null,null,"x Gesamtnutzung Holz auf Waldfläche in ha"]
[null,11,"Sicherung der Waldbodenwerte","Ja",null,null,1000,"x Waldfläche in ha",null,null,null,null,{"$f":"IF(D28=\"Ja\",G28*Verfahrensdaten!C28,\"---\")","v":237708.79999999999}]
[null,12,"Reduzierung der Umzäunungskosten","Ja",null,{"$f":"IF(H29=1,0,IF(H29=2,2,IF(H29=3,4,IF(H29=4,8,IF(H29=5,10,\"\")))))","v":4},null,3,null,null,null,null,{"$f":"IF(D29=\"Ja\",(F29*Verfahrensdaten!C28)*Kennzahlen!G33,\"---\")","v":21242.609203200002}]
[null,null,null,null,null,null,null,"Zusammenlegungsverhältnis, x Waldfläche"]
[null,13,"Verbesserung der Arbeitssicherheit","Ja",null,8.8000000000000007,null,"x Gesamtnutzung Holz auf Waldfläche in Fm und ha",null,null,null,null,{"$f":"IF(D31=\"Ja\",(F31*Verfahrensdaten!C44*Verfahrensdaten!C28)*Kennzahlen!G33,\"---\")","v":186934.96098816002}]
[null,14,"Regulierung des Wasserregimes","Ja",null,null,10000,"x ausgewiesene Retentionsfläche/Schutzstreifen an Bächen in ha\nSachwert sonstiger wasserregulierender Maßnahmen in €",null,null,null,null,{"$f":"IF(D32=\"Ja\",(G32*Verfahrensdaten!C46)+Verfahrensdaten!C47,\"---\")","v":180000},{"$f":"SUM(M32:M41)","v":511397.87050000002}]
[null,15,"Erhaltung des Landschaftsbildes","Ja",null,{"$f":"Kennzahlen!B36","v":284},null,"x offengehaltene Kulturlandschaft in ha",null,null,null,null,{"$f":"IF(D33=\"Ja\",(F33*Verfahrensdaten!C48)*Kennzahlen!G33,\"---\")","v":72965.706000000006}]
[null,16,"Sicherung ökologisch wertvoller Gebiete","Ja",null,145,null,"x unterschutzgestellte Flächen des Naturschutzes in ha",null,null,null,null,{"$f":"IF(D34=\"Ja\",(F34*Verfahrensdaten!C49)*Kennzahlen!G33,\"---\")","v":78070.624500000005}]
[null,17,"Förderung und Entwicklung naturnaher Lebensräume und des Biotopverbundes","Ja",null,145,1450,"Saumvegetation Wegenetz 1450 €/ha\nEinrichtung von Retentionsflächen/Bachauen in ha (wie 14.)\nEinrichtung von Waldrandflächen in ha",null,null,null,null,{"$f":"IF(AND(D35=\"Ja\",H39=1),(G35*Verfahrensdaten!C53)+(F35*Verfahrensdaten!C46*Kennzahlen!G33)+(F35*Verfahrensdaten!C51*Kennzahlen!G33)+(((Verfahrensdaten!C18-Verfahrensdaten!C60)*19)+(Verfahrensdaten!C55+Verfahrensdaten!C56+Verfahrensdaten!C57+Verfahrensdaten!C58)+Verfahrensdaten!C59),IF(AND(D35=\"Ja\",H39=2),(G35*Verfahrensdaten!C53)+(F35*Verfahrensdaten!C46*Kennzahlen!G33)+(F35*Verfahrensdaten!C51*Kennzahlen!G33)+((Verfahrensdaten!C18-Verfahrensdaten!C60)*19+Kennzahlen!F55+Verfahrensdaten!C59),\"---\"))","v":147967.09}]
[]
[]
[null,null,null,null,null,null,null,"Sachwert weiterer Biotopflächen in €"]
[null,null,null,null,null,null,null,1]
[null,18,"Lenkung der Aufforstung","Nein",null,null,3500,"x Aufforstungsfläche in ha",null,null,null,null,{"$f":"IF(D40=\"Ja\",G40*Verfahrensdaten!C50,\"---\")","v":"---"}]
[null,19,"Beitrag des Waldes zum Klimaschutz","Ja",null,145,null,"x Waldumbaufläche hin zur Bewirtschaftung in ha",null,null,null,null,{"$f":"IF(D41=\"Ja\",(F41*Verfahrensdaten!C52)*Kennzahlen!G33,\"---\")","v":32394.45}]
[null,20,"Realisierung/Beschleunigung von Naturschutzprojekten","Nein",null,null,{"$f":"M42","v":"---"},2,null,null,null,null,{"$f":"IF(AND(D42=\"Ja\",H42=1),Verfahrensdaten!C62,IF(AND(D42=\"Ja\",H42=2),(Verfahrensdaten!C62*(1+0.03)^3-Verfahrensdaten!C62),\"---\"))","v":"---"},{"$f":"SUM(M42:M52)","v":4377466.6507208161}]
[null,21,"Realisierung/Beschleunigung kommunaler Planungen","Ja",null,null,{"$f":"M43","v":433155.76955415029},2,null,null,null,null,{"$f":"IF(AND(D43=\"Ja\",H43=1),Verfahrensdaten!C63,IF(AND(D43=\"Ja\",H43=2),(Verfahrensdaten!C63*(1+0.03)^3-Verfahrensdaten!C63),\"---\"))","v":433155.76955415029}]
[null,22,"Allgemeine Vorteile durch Verbesserung des regionalen Wegenetzes","Ja",null,null,{"$f":"M44","v":1190079.4833333332},"1/3 der Planungs-und Herstellungskosten in den regionalen Wegebau in €",null,null,null,null,{"$f":"IF(D44=\"Ja\",1/3*(Ausführungskosten!C5+Verfahrensdaten!C64),\"---\")","v":1190079.4833333332}]
[null,23,"Schaffung und Sicherung von Arbeitsplätzen","Ja",null,null,{"$f":"M45","v":1463797.7644999998},"41 % der Planungs- und Herstellungskosten in den regionalen Wegebau in €",null,null,null,null,{"$f":"IF(D45=\"Ja\",0.41*(Ausführungskosten!C5+Verfahrensdaten!C64),\"---\")","v":1463797.7644999998}]
[null,24,"Vermeidung örtlicher Hochwasserschäden","Nein",null,{"$f":"Verfahrensdaten!C66","v":0},null,"Jährlich vermiedene Hochwasserschäden in €",null,null,null,null,{"$f":"IF(D46=\"Ja\",F46*Kennzahlen!G33,\"---\")","v":"---"}]
[null,25,"Sicherung von Kulturdenkmälern","Ja",null,null,{"$f":"IF(H47=1,0,IF(H47=2,60,IF(H47=3,150,IF(H47=4,300,IF(H47=5,600,\"---\")))))","v":60},2,null,null,null,null,{"$f":"IF(D47=\"Ja\",G47*Verfahrensdaten!C18,\"---\")","v":70211.400000000009}]
[null,null,null,null,null,null,null,"Dichte Bodendenkmäler auf 1.000 ha"]
[null,26,"Anlage von Erholungseinrichtungen","Ja",null,null,{"$f":"M49","v":3142.75},"Sachwert innerhalb Ausführungskosten in €",null,null,null,null,{"$f":"IF(D49=\"Ja\",Verfahrensdaten!C67+Verfahrensdaten!C68,\"---\")","v":3142.75}]
[null,null,null,null,null,null,null,"Sachwert Drittprojekte für Erholungseinrichtungen"]
[null,27,"Vorteile für den Rad- und Wanderwegetourismus","Ja",null,null,{"$f":"M51","v":1190079.4833333332},"1/3 der Planungs-und Herstellungskosten in den regionalen Wegebau in €",null,null,null,null,{"$f":"IF(D51=\"Ja\",1/3*(Ausführungskosten!C5+Verfahrensdaten!C64),\"---\")","v":1190079.4833333332}]
[null,28,"Entwicklung der Energieversorgung (Windenergie)","Ja",null,null,27000,"27.000 € je Windkraftanlage für die Schaffung der Voraussetzungen auf Privatbesitz",null,null,null,null,{"$f":"IF(D52=\"Ja\",G52*Verfahrensdaten!C69,\"---\")","v":27000}]
[null,29,"Verbesserung der Qualität des Liegenschaftskatasters, Grenzsicherheit bei den Eigentümern","Ja",null,null,{"$f":"IF(Verfahrensdaten!C10=\"Verfahren nach §91 ff. FlurbG\",(Verfahrensdaten!C40*2),105)","v":68},"Vorteile für die Grundstückseigentümer durch Neuvermessung/Bewirtschaftungsanzeige in €",null,null,null,null,{"$f":"IF(AND(D53=\"Ja\",Verfahrensdaten!C10=\"Verfahren nach §91 ff. FlurbG\"),G53*Verfahrensdaten!C18,(Verfahrensdaten!C29*4*105)*Verfahrensdaten!C36*0.5+(Verfahrensdaten!C29*4*105)*Verfahrensdaten!C37*0.3+(Verfahrensdaten!C29*4*105)*Verfahrensdaten!C38*0.2+(Verfahrensdaten!C29*4*105)*Verfahrensdaten!C39*0.1)","v":79572.92},{"$f":"SUM(M53:M58)","v":280814.76454600622}]
[null,30,"Anregung des Grundstücksmarktes und Kostenersparnis bei Landabfindungsverzicht","Ja",null,null,{"$f":"M54","v":33905.2952},"Einsparungen an Grundbuch- und Notarkosten sowie Einsparungen an Wertermittlungskosten (nur Waldgrundstücke) in €",null,null,null,null,{"$f":"IF(D54=\"Ja\",(0.1*Verfahrensdaten!C28*Kennzahlen!R28)+(0.1*Verfahrensdaten!C27*Kennzahlen!R31),\"---\")","v":33905.2952}]
[null,31,"Verringerung der Bürokratiekosten in der Landwirtschaft","Ja",{"$f":"M55","v":19751.231656406253},null,null,"Zeitersparnis der Landwirte bei Beantragung der Flächenprämien (GAP) und bei den Prämienkontrollen",null,null,null,null,{"$f":"IF(D55=\"Ja\",(Verfahrensdaten!C31*6*Kennzahlen!L48)*Kennzahlen!G28+(Kennzahlen!L46*(Verfahrensdaten!C27/Kennzahlen!L50)*4*Kennzahlen!L48)*Kennzahlen!G28,\"---\")","v":19751.231656406253}]
[null,32,"Kostenersparnisse bei der Unterhaltung gemeinschaftlicher Anlagen","Nein",null,null,{"$f":"M56","v":"---"},"Dauer der Unterhaltung durch die TG in Monaten x Unterhaltungskosten in €",null,null,null,null,{"$f":"IF(D56=\"Ja\",Verfahrensdaten!C72*Verfahrensdaten!C73,\"---\")","v":"---"}]
[null,33,"Effizientere Fachberatung, Wissens- und Motivationsgewinn der Privatwaldeigentümer","Ja",null,27,null,"x neugeordnete Waldfläche in ha",null,null,null,null,{"$f":"IF(D57=\"Ja\",F57*Verfahrensdaten!C28*Kennzahlen!G33,\"---\")","v":143387.61212160002}]
[null,34,"Verringerung von Verwaltungsaufwand im Kataster- und Grundbuchamt","Ja",0.2,null,null,"x Verfahrensfläche in ha",null,null,null,null,{"$f":"IF(D58=\"Ja\",E58*Verfahrensdaten!C18*Kennzahlen!E28,\"---\")","v":4197.7055680000003}]
[]
[null,null,null,null,null,null,null,null,null,null,null,"Monetärer Gesamtnutzen [€]",null,{"$f":"SUM(N10:N58)","v":8068895.1543121822}]

{"sheet":"Wertschöpfungsbilanz","index":6,"n_rows":41,"n_cols":24,"rows_kept":41,"cut":false,"hidden":false,"merged":[[31,1,32,4],[31,6,32,9],[31,5,32,5],[30,1,30,9],[3,12,3,23],[19,6,20,9],[22,6,22,9],[23,6,24,9],[26,6,26,9],[27,6,28,9],[10,6,10,9],[11,6,12,9],[14,6,14,9],[15,6,16,9],[18,6,18,9],[22,1,22,4],[23,1,24,4],[7,1,8,4],[26,1,26,4],[27,1,28,4],[11,1,12,4],[14,1,14,4],[15,1,16,4],[18,1,18,4],[19,1,20,4],[5,20,5,21],[5,22,5,23],[4,1,5,9],[7,6,8,9],[10,1,10,4],[5,16,5,17],[5,18,5,19]]}
[]
[]
[]
[null,null,null,null,null,null,null,null,null,null,null,null,"W E R T S C H Ö P F U N G S B E I T R Ä G E   N A C H   D I M E N S I O N I E R U N G   D E S   N U T Z E N S"]
[null,"W E R T S C H Ö P F U N G S B I L A N Z"]
[null,null,null,null,null,null,null,null,null,null,null,null,null,"Beitrag","Kategorie",null,"Bewirtschaftungsvorteile Land- und Forstwirtschaft",null,"Umwelt- und Naturschutz, Landeskultur",null,"Allgemeine Vorteile, Erholung, Regionale Entwicklung",null,"Eigentums- und Rechtssicherheit"]
[]
[null,"K O S T E N",null,null,null,null,"N U T Z E N",null,null,null,null,null,null,"Bewirtschaftungsvorteile Landwirtschaft",{"$f":"IF(AND(Wertschöpfungsberechnung!M10<100000,Wertschöpfungsberechnung!M10>0),1,IF(AND(Wertschöpfungsberechnung!M10<200000,Wertschöpfungsberechnung!M10>99999),2,IF(AND(Wertschöpfungsberechnung!M10<500000,Wertschöpfungsberechnung!M10>199999),3,IF(Wertschöpfungsberechnung!M10=\"---\",\"---\",4))))","v":4},null,"Bewirtschaftungsvorteile Landwirtschaft",{"$f":"O8","v":4},"Regulierung Wasserregime",0,"Naturschutzprojekte",0,"Verbesserung Liegenschaftskataster",0]
[null,null,null,null,null,null,null,null,null,null,null,null,null,"Steigerung Holznutzung",{"$f":"IF(AND(Wertschöpfungsberechnung!M11<100000,Wertschöpfungsberechnung!M11>0),1,IF(AND(Wertschöpfungsberechnung!M11<200000,Wertschöpfungsberechnung!M11>99999),2,IF(AND(Wertschöpfungsberechnung!M11<500000,Wertschöpfungsberechnung!M11>199999),3,IF(Wertschöpfungsberechnung!M11=\"---\",\"---\",4))))","v":3},null,"Steigerung Holznutzung",{"$f":"O9","v":3},"Erhaltung Landschaftsbild",0,"Kommunale Planungen",0,"Anregung Grundstücksmarkt",0]
[null,null,null,null,null,null,null,null,null,null,null,null,null,"Bildung größerer Holzlose",{"$f":"IF(AND(Wertschöpfungsberechnung!M13<100000,Wertschöpfungsberechnung!M13>0),1,IF(AND(Wertschöpfungsberechnung!M13<200000,Wertschöpfungsberechnung!M13>99999),2,IF(AND(Wertschöpfungsberechnung!M13<500000,Wertschöpfungsberechnung!M13>199999),3,IF(Wertschöpfungsberechnung!M13=\"---\",\"---\",4))))","v":2},null,"Bildung größerer Holzlose",2,"Sicherung ökologisch wertvoller Gebiete",0,"Verbesserung Wegenetz",0,"Verringerung Bürokratiekosten",0]
[null,"Direkte Personalkosten Abteilung 5 - LVGL",null,null,null,null,"Bereich Land- und Forstwirtschaft",null,null,null,null,null,null,"Senkung Rückekosten",{"$f":"IF(AND(Wertschöpfungsberechnung!M15<100000,Wertschöpfungsberechnung!M15>0),1,IF(AND(Wertschöpfungsberechnung!M15<200000,Wertschöpfungsberechnung!M15>99999),2,IF(AND(Wertschöpfungsberechnung!M15<500000,Wertschöpfungsberechnung!M15>199999),3,IF(Wertschöpfungsberechnung!M15=\"---\",\"---\",4))))","v":1},null,"Senkung Rückekosten",1,"Förderung Biotopverbund",0,"Regionale Arbeitsplätze",0,"Kostenersparnisse gem. Anlagen",0]
[null,{"$f":"Verfahrenskosten!D30","v":1484725},null,null,null,null,{"$f":"Wertschöpfungsberechnung!N10","v":2899215.8685453599},null,null,null,null,null,null,"Bewirtschaftungsvorteile durch Wegenetz",{"$f":"IF(AND(Wertschöpfungsberechnung!M17<100000,Wertschöpfungsberechnung!M17>0),1,IF(AND(Wertschöpfungsberechnung!M17<200000,Wertschöpfungsberechnung!M17>99999),2,IF(AND(Wertschöpfungsberechnung!M17<500000,Wertschöpfungsberechnung!M17>199999),3,IF(Wertschöpfungsberechnung!M17=\"---\",\"---\",4))))","v":3},null,"Bewirtschaftungsvorteile durch Wegenetz",3,"Lenkung Aufforstung",0,"Vermeidung Hochwasserschäden",0,"Fachberatung Privatwaldeigentümer",0]
[null,null,null,null,null,null,null,null,null,null,null,null,null,"Reduzierung Fußwegezeiten",{"$f":"IF(AND(Wertschöpfungsberechnung!M19<100000,Wertschöpfungsberechnung!M19>0),1,IF(AND(Wertschöpfungsberechnung!M19<200000,Wertschöpfungsberechnung!M19>99999),2,IF(AND(Wertschöpfungsberechnung!M19<500000,Wertschöpfungsberechnung!M19>199999),3,IF(Wertschöpfungsberechnung!M19=\"---\",\"---\",4))))","v":1},null,"Reduzierung Fußwegezeiten",1,"Beitrag Wald Klimaschutz",0,"Sicherung Kulturdenkmäler",0,"Verringerung Verwaltungsaufwand",0]
[null,null,null,null,null,null,null,null,null,null,null,null,null,"Verbesserung Bestandqualität",{"$f":"IF(AND(Wertschöpfungsberechnung!M21<100000,Wertschöpfungsberechnung!M21>0),1,IF(AND(Wertschöpfungsberechnung!M21<200000,Wertschöpfungsberechnung!M21>99999),2,IF(AND(Wertschöpfungsberechnung!M21<500000,Wertschöpfungsberechnung!M21>199999),3,IF(Wertschöpfungsberechnung!M21=\"---\",\"---\",4))))","v":2},null,"Verbesserung Bestandqualität",2,null,0,"Anlage Erholungseinrichtungen",0,null,0]
[null,"Sachkosten",null,null,null,null,"Bereich Umwelt- und Naturschutz",null,null,null,null,null,null,"Reduzierung Grundstücksrandeffekte",{"$f":"IF(AND(Wertschöpfungsberechnung!M23<100000,Wertschöpfungsberechnung!M23>0),1,IF(AND(Wertschöpfungsberechnung!M23<200000,Wertschöpfungsberechnung!M23>99999),2,IF(AND(Wertschöpfungsberechnung!M23<500000,Wertschöpfungsberechnung!M23>199999),3,IF(Wertschöpfungsberechnung!M23=\"---\",\"---\",4))))","v":2},null,"Reduzierung Grundstücksrandeffekte",2,null,0,"Vorteile regionaler Tourismus",0,null,0]
[null,{"$f":"B12*0.2136","v":317137.26},null,null,null,null,{"$f":"Wertschöpfungsberechnung!N32","v":511397.87050000002},null,null,null,null,null,null,"Verbesserung Waldzustand",{"$f":"IF(AND(Wertschöpfungsberechnung!M25<100000,Wertschöpfungsberechnung!M25>0),1,IF(AND(Wertschöpfungsberechnung!M25<200000,Wertschöpfungsberechnung!M25>99999),2,IF(AND(Wertschöpfungsberechnung!M25<500000,Wertschöpfungsberechnung!M25>199999),3,IF(Wertschöpfungsberechnung!M25=\"---\",\"---\",4))))","v":1},null,"Verbesserung Waldzustand",1,null,0,"Entwicklung Energieversorgung",0,null,0]
[null,null,null,null,null,null,null,null,null,null,null,null,null,"Effizienz Holztransport",{"$f":"IF(AND(Wertschöpfungsberechnung!M26<100000,Wertschöpfungsberechnung!M26>0),1,IF(AND(Wertschöpfungsberechnung!M26<200000,Wertschöpfungsberechnung!M26>99999),2,IF(AND(Wertschöpfungsberechnung!M26<500000,Wertschöpfungsberechnung!M26>199999),3,IF(Wertschöpfungsberechnung!M26=\"---\",\"---\",4))))","v":1},null,"Effizienz Holztransport",1,null,0,null,0,null,0]
[null,null,null,null,null,null,null,null,null,null,null,null,null,"Sicherung Waldbodenwerte",{"$f":"IF(AND(Wertschöpfungsberechnung!M28<100000,Wertschöpfungsberechnung!M28>0),1,IF(AND(Wertschöpfungsberechnung!M28<200000,Wertschöpfungsberechnung!M28>99999),2,IF(AND(Wertschöpfungsberechnung!M28<500000,Wertschöpfungsberechnung!M28>199999),3,IF(Wertschöpfungsberechnung!M28=\"---\",\"---\",4))))","v":3},null,"Sicherung Waldbodenwerte",3,null,0,null,0,null,0]
[null,"Overheadkosten",null,null,null,null,"Bereich Allgemeinheit, ländliche Entwicklung",null,null,null,null,null,null,"Reduzierung Umzäunungskosten",{"$f":"IF(AND(Wertschöpfungsberechnung!M29<100000,Wertschöpfungsberechnung!M29>0),1,IF(AND(Wertschöpfungsberechnung!M29<200000,Wertschöpfungsberechnung!M29>99999),2,IF(AND(Wertschöpfungsberechnung!M29<500000,Wertschöpfungsberechnung!M29>199999),3,IF(Wertschöpfungsberechnung!M29=\"---\",\"---\",4))))","v":1},null,"Reduzierung Umzäunungskosten",1,null,0,null,0,null,0]
[null,{"$f":"(B12+B16)*0.0863","v":155500.71303800002},null,null,null,null,{"$f":"Wertschöpfungsberechnung!N42","v":4377466.6507208161},null,null,null,null,null,null,"Verbesserung Arbeitssicherheit",{"$f":"IF(AND(Wertschöpfungsberechnung!M31<100000,Wertschöpfungsberechnung!M31>0),1,IF(AND(Wertschöpfungsberechnung!M31<200000,Wertschöpfungsberechnung!M31>99999),2,IF(AND(Wertschöpfungsberechnung!M31<500000,Wertschöpfungsberechnung!M31>199999),3,IF(Wertschöpfungsberechnung!M31=\"---\",\"---\",4))))","v":2},null,"Verbesserung Arbeitssicherheit",2,null,0,null,0,null,0]
[null,null,null,null,null,null,null,null,null,null,null,null,null,"Regulierung Wasserregime",{"$f":"IF(AND(Wertschöpfungsberechnung!M32<100000,Wertschöpfungsberechnung!M32>0),1,IF(AND(Wertschöpfungsberechnung!M32<200000,Wertschöpfungsberechnung!M32>99999),2,IF(AND(Wertschöpfungsberechnung!M32<500000,Wertschöpfungsberechnung!M32>199999),3,IF(Wertschöpfungsberechnung!M32=\"---\",\"---\",4))))","v":2},null,"Regulierung Wasserregime",0,null,{"$f":"O21","v":2},null,0,null,0]
[null,null,null,null,null,null,null,null,null,null,null,null,null,"Erhaltung Landschaftsbild",{"$f":"IF(AND(Wertschöpfungsberechnung!M33<100000,Wertschöpfungsberechnung!M33>0),1,IF(AND(Wertschöpfungsberechnung!M33<200000,Wertschöpfungsberechnung!M33>99999),2,IF(AND(Wertschöpfungsberechnung!M33<500000,Wertschöpfungsberechnung!M33>199999),3,IF(Wertschöpfungsberechnung!M33=\"---\",\"---\",4))))","v":1},null,"Erhaltung Landschaftsbild",0,null,{"$f":"O22","v":1},null,0,null,0]
[null,"Ausführungskosten",null,null,null,null,"Bereich Eigentums- und Rechtssicherheit",null,null,null,null,null,null,"Sicherung ökologisch wertvoller Gebiete",{"$f":"IF(AND(Wertschöpfungsberechnung!M34<100000,Wertschöpfungsberechnung!M34>0),1,IF(AND(Wertschöpfungsberechnung!M34<200000,Wertschöpfungsberechnung!M34>99999),2,IF(AND(Wertschöpfungsberechnung!M34<500000,Wertschöpfungsberechnung!M34>199999),3,IF(Wertschöpfungsberechnung!M34=\"---\",\"---\",4))))","v":1},null,"Sicherung ökologisch wertvoller Gebiete",0,null,1,null,0,null,0]
[null,{"$f":"Ausführungskosten!C19","v":3526698.2300000004},null,null,null,null,{"$f":"Wertschöpfungsberechnung!N53","v":280814.76454600622},null,null,null,null,null,null,"Förderung Biotopverbund",{"$f":"IF(AND(Wertschöpfungsberechnung!M35<100000,Wertschöpfungsberechnung!M35>0),1,IF(AND(Wertschöpfungsberechnung!M35<200000,Wertschöpfungsberechnung!M35>99999),2,IF(AND(Wertschöpfungsberechnung!M35<500000,Wertschöpfungsberechnung!M35>199999),3,IF(Wertschöpfungsberechnung!M35=\"---\",\"---\",4))))","v":2},null,"Förderung Biotopverbund",0,null,2,null,0,null,0]
[null,null,null,null,null,null,null,null,null,null,null,null,null,"Lenkung Aufforstung",{"$f":"IF(AND(Wertschöpfungsberechnung!M40<100000,Wertschöpfungsberechnung!M40>0),1,IF(AND(Wertschöpfungsberechnung!M40<200000,Wertschöpfungsberechnung!M40>99999),2,IF(AND(Wertschöpfungsberechnung!M40<500000,Wertschöpfungsberechnung!M40>199999),3,IF(Wertschöpfungsberechnung!M40=\"---\",\"---\",4))))","v":"---"},null,"Lenkung Aufforstung",0,null,"---",null,0,null,0]
[null,null,null,null,null,null,null,null,null,null,null,null,null,"Beitrag Wald Klimaschutz",{"$f":"IF(AND(Wertschöpfungsberechnung!M41<100000,Wertschöpfungsberechnung!M41>0),1,IF(AND(Wertschöpfungsberechnung!M41<200000,Wertschöpfungsberechnung!M41>99999),2,IF(AND(Wertschöpfungsberechnung!M41<500000,Wertschöpfungsberechnung!M41>199999),3,IF(Wertschöpfungsberechnung!M41=\"---\",\"---\",4))))","v":1},null,"Beitrag Wald Klimaschutz",0,null,1,null,0,null,0]
[null,"S U M M E",null,null,null,null,"S U M M E",null,null,null,null,null,null,"Naturschutzprojekte",{"$f":"IF(AND(Wertschöpfungsberechnung!M42<100000,Wertschöpfungsberechnung!M42>0),1,IF(AND(Wertschöpfungsberechnung!M42<200000,Wertschöpfungsberechnung!M42>99999),2,IF(AND(Wertschöpfungsberechnung!M42<500000,Wertschöpfungsberechnung!M42>199999),3,IF(Wertschöpfungsberechnung!M42=\"---\",\"---\",4))))","v":"---"},null,"Naturschutzprojekte",0,null,0,null,{"$f":"O27","v":"---"},null,0]
[null,{"$f":"B24+B20+B16+B12","v":5484061.2030380005},null,null,null,null,{"$f":"G24+G20+G16+G12","v":8068895.1543121822},null,null,null,null,null,null,"Kommunale Planungen",{"$f":"IF(AND(Wertschöpfungsberechnung!M43<100000,Wertschöpfungsberechnung!M43>0),1,IF(AND(Wertschöpfungsberechnung!M43<200000,Wertschöpfungsberechnung!M43>99999),2,IF(AND(Wertschöpfungsberechnung!M43<500000,Wertschöpfungsberechnung!M43>199999),3,IF(Wertschöpfungsberechnung!M43=\"---\",\"---\",4))))","v":3},null,"Kommunale Planungen",0,null,0,null,{"$f":"O28","v":3},null,0]
[null,null,null,null,null,null,null,null,null,null,null,null,null,"Verbesserung Wegenetz",{"$f":"IF(AND(Wertschöpfungsberechnung!M44<100000,Wertschöpfungsberechnung!M44>0),1,IF(AND(Wertschöpfungsberechnung!M44<200000,Wertschöpfungsberechnung!M44>99999),2,IF(AND(Wertschöpfungsberechnung!M44<500000,Wertschöpfungsberechnung!M44>199999),3,IF(Wertschöpfungsberechnung!M44=\"---\",\"---\",4))))","v":4},null,"Verbesserung Wegenetz",0,null,0,null,4,null,0]
[null,null,null,null,null,null,null,null,null,null,null,null,null,"Regionale Arbeitsplätze",{"$f":"IF(AND(Wertschöpfungsberechnung!M45<100000,Wertschöpfungsberechnung!M45>0),1,IF(AND(Wertschöpfungsberechnung!M45<200000,Wertschöpfungsberechnung!M45>99999),2,IF(AND(Wertschöpfungsberechnung!M45<500000,Wertschöpfungsberechnung!M45>199999),3,IF(Wertschöpfungsberechnung!M45=\"---\",\"---\",4))))","v":4},null,"Regionale Arbeitsplätze",0,null,0,null,4,null,0]
[null,"K O S T E N - N U T Z E N - V E R H Ä L T N I S",null,null,null,null,null,null,null,null,null,null,null,"Vermeidung Hochwasserschäden",{"$f":"IF(AND(Wertschöpfungsberechnung!M46<100000,Wertschöpfungsberechnung!M46>0),1,IF(AND(Wertschöpfungsberechnung!M46<200000,Wertschöpfungsberechnung!M46>99999),2,IF(AND(Wertschöpfungsberechnung!M46<500000,Wertschöpfungsberechnung!M46>199999),3,IF(Wertschöpfungsberechnung!M46=\"---\",\"---\",4))))","v":"---"},null,"Vermeidung Hochwasserschäden",0,null,0,null,"---",null,0]
[null,1,null,null,null,":",{"$f":"G28/B28","v":1.4713357228475612},null,null,null,null,null,null,"Sicherung Kulturdenkmäler",{"$f":"IF(AND(Wertschöpfungsberechnung!M47<100000,Wertschöpfungsberechnung!M47>0),1,IF(AND(Wertschöpfungsberechnung!M47<200000,Wertschöpfungsberechnung!M47>99999),2,IF(AND(Wertschöpfungsberechnung!M47<500000,Wertschöpfungsberechnung!M47>199999),3,IF(Wertschöpfungsberechnung!M47=\"---\",\"---\",4))))","v":1},null,"Sicherung Kulturdenkmäler",0,null,0,null,1,null,0]
[null,null,null,null,null,null,null,null,null,null,null,null,null,"Anlage Erholungseinrichtungen",{"$f":"IF(AND(Wertschöpfungsberechnung!M49<100000,Wertschöpfungsberechnung!M49>0),1,IF(AND(Wertschöpfungsberechnung!M49<200000,Wertschöpfungsberechnung!M49>99999),2,IF(AND(Wertschöpfungsberechnung!M49<500000,Wertschöpfungsberechnung!M49>199999),3,IF(Wertschöpfungsberechnung!M49=\"---\",\"---\",4))))","v":1},null,"Anlage Erholungseinrichtungen",0,null,0,null,1,null,0]
[null,null,null,null,null,null,null,null,null,null,null,null,null,"Vorteile regionaler Tourismus",{"$f":"IF(AND(Wertschöpfungsberechnung!M51<100000,Wertschöpfungsberechnung!M51>0),1,IF(AND(Wertschöpfungsberechnung!M51<200000,Wertschöpfungsberechnung!M51>99999),2,IF(AND(Wertschöpfungsberechnung!M51<500000,Wertschöpfungsberechnung!M51>199999),3,IF(Wertschöpfungsberechnung!M51=\"---\",\"---\",4))))","v":4},null,"Vorteile regionaler Tourismus",0,null,0,null,4,null,0]
[null,null,null,null,null,null,null,null,null,null,null,null,null,"Entwicklung Energieversorgung",{"$f":"IF(AND(Wertschöpfungsberechnung!M52<100000,Wertschöpfungsberechnung!M52>0),1,IF(AND(Wertschöpfungsberechnung!M52<200000,Wertschöpfungsberechnung!M52>99999),2,IF(AND(Wertschöpfungsberechnung!M52<500000,Wertschöpfungsberechnung!M52>199999),3,IF(Wertschöpfungsberechnung!M52=\"---\",\"---\",4))))","v":1},null,"Entwicklung Energieversorgung",0,null,0,null,1,null,0]
[null,null,null,null,"̇",null,null,null,null,null,null,null,null,"Verbesserung Liegenschaftskataster",{"$f":"IF(AND(Wertschöpfungsberechnung!M53<100000,Wertschöpfungsberechnung!M53>0),1,IF(AND(Wertschöpfungsberechnung!M53<200000,Wertschöpfungsberechnung!M53>99999),2,IF(AND(Wertschöpfungsberechnung!M53<500000,Wertschöpfungsberechnung!M53>199999),3,IF(Wertschöpfungsberechnung!M53=\"---\",\"---\",4))))","v":1},null,"Verbesserung Liegenschaftskataster",0,null,0,null,0,null,{"$f":"O36","v":1}]
[null,null,null,null,null,null,null,null,null,null,null,null,null,"Anregung Grundstücksmarkt",{"$f":"IF(AND(Wertschöpfungsberechnung!M54<100000,Wertschöpfungsberechnung!M54>0),1,IF(AND(Wertschöpfungsberechnung!M54<200000,Wertschöpfungsberechnung!M54>99999),2,IF(AND(Wertschöpfungsberechnung!M54<500000,Wertschöpfungsberechnung!M54>199999),3,IF(Wertschöpfungsberechnung!M54=\"---\",\"---\",4))))","v":1},null,"Anregung Grundstücksmarkt",0,null,0,null,0,null,{"$f":"O37","v":1}]
[null,null,null,null,null,null,null,null,null,null,null,null,null,"Verringerung Bürokratiekosten",{"$f":"IF(AND(Wertschöpfungsberechnung!M55<100000,Wertschöpfungsberechnung!M55>0),1,IF(AND(Wertschöpfungsberechnung!M55<200000,Wertschöpfungsberechnung!M55>99999),2,IF(AND(Wertschöpfungsberechnung!M55<500000,Wertschöpfungsberechnung!M55>199999),3,IF(Wertschöpfungsberechnung!M55=\"---\",\"---\",4))))","v":1},null,"Verringerung Bürokratiekosten",0,null,0,null,0,null,1]
[null,null,null,null,null,null,null,null,null,null,null,null,null,"Kostenersparnisse gem. Anlagen",{"$f":"IF(AND(Wertschöpfungsberechnung!M56<100000,Wertschöpfungsberechnung!M56>0),1,IF(AND(Wertschöpfungsberechnung!M56<200000,Wertschöpfungsberechnung!M56>99999),2,IF(AND(Wertschöpfungsberechnung!M56<500000,Wertschöpfungsberechnung!M56>199999),3,IF(Wertschöpfungsberechnung!M56=\"---\",\"---\",4))))","v":"---"},null,"Kostenersparnisse gem. Anlagen",0,null,0,null,0,null,"---"]
[null,null,null,null,null,null,null,null,null,null,null,null,null,"Fachberatung Privatwaldeigentümer",{"$f":"IF(AND(Wertschöpfungsberechnung!M57<100000,Wertschöpfungsberechnung!M57>0),1,IF(AND(Wertschöpfungsberechnung!M57<200000,Wertschöpfungsberechnung!M57>99999),2,IF(AND(Wertschöpfungsberechnung!M57<500000,Wertschöpfungsberechnung!M57>199999),3,IF(Wertschöpfungsberechnung!M57=\"---\",\"---\",4))))","v":2},null,"Fachberatung Privatwaldeigentümer",0,null,0,null,0,null,2]
[null,null,null,null,null,null,null,null,null,null,null,null,null,"Verringerung Verwaltungsaufwand",{"$f":"IF(AND(Wertschöpfungsberechnung!M58<100000,Wertschöpfungsberechnung!M58>0),1,IF(AND(Wertschöpfungsberechnung!M58<200000,Wertschöpfungsberechnung!M58>99999),2,IF(AND(Wertschöpfungsberechnung!M58<500000,Wertschöpfungsberechnung!M58>199999),3,IF(Wertschöpfungsberechnung!M58=\"---\",\"---\",4))))","v":1},null,"Verringerung Verwaltungsaufwand",0,null,0,null,0,null,1]

{"sheet":"Allg. Wertschöpfungsmodell","index":7,"n_rows":38,"n_cols":6,"rows_kept":38,"cut":false,"hidden":false,"merged":[[32,3,37,3],[23,3,31,3],[1,2,1,5],[4,3,16,3],[17,3,22,3]]}
[]
[null,null,"Wertschöpfungsmodell für saarländische Flurbereinigungsverfahren"]
[]
[null,null,"Nr.","Wertschöpfungsbereich","Wertschöpfungsbeitrag","Grundlage"]
[null,null,1,"Neue Bewirtschaftungsmöglichkeiten in der Land- und Forstwirtschaft","Bewirtschaftungsvorteile durch Neuordnung landwirtschaftlicher Nutzflächen","BMS"]
[null,null,2,null,"Steigerung der Holznutzung","Hinz"]
[null,null,3,null,"Bildung größerer Holzlose","Hinz"]
[null,null,4,null,"Senkung der Rückekosten","Hinz"]
[null,null,5,null,"Bewirtschaftungsvorteile durch verbessertes Wegenetz","BMS"]
[null,null,6,null,"Reduzierung der Fußwegezeiten","Hinz"]
[null,null,7,null,"Verbesserung der Bestandsqualität durch Zusammenlegung","Hinz"]
[null,null,8,null,"Reduzierung der Grundstücksrandeffekte","Hinz"]
[null,null,9,null,"Verbesserung des Waldzustandes durch Erstdurchforstung","Hinz"]
[null,null,10,null,"Erhöhung der Effizienz des Holztransports","Hinz"]
[null,null,11,null,"Sicherung der Waldbodenwerte","Hinz"]
[null,null,12,null,"Reduzierung der Umzäunungskosten","Hinz"]
[null,null,13,null,"Verbesserung der Arbeitssicherheit","Hinz"]
[null,null,14,"Förderung von Umwelt- und Naturschutz, Erhaltung der allgemeinen Landeskultur","Regulierung des Wasserregimes","Hinz"]
[null,null,15,null,"Erhaltung des Landschaftsbildes","BMS/Hinz gleich"]
[null,null,16,null,"Sicherung ökologisch wertvoller Gebiete","Hinz"]
[null,null,17,null,"Förderung und Entwicklung naturnaher Lebensräume und des Biotopverbundes","BMS/Hinz"]
[null,null,18,null,"Lenkung der Aufforstung","Hinz"]
[null,null,19,null,"Beitrag des Waldes zum Klimaschutz","Hinz"]
[null,null,20,"Vorteile für die Allgemeinheit, Steigerung der Erholungsfunktion, Stärkung ländlicher Regionen","Realisierung/Beschleunigung von Naturschutzprojekten","BMS"]
[null,null,21,null,"Realisierung/Beschleunigung kommunaler Planungen","BMS"]
[null,null,22,null,"Allgemeine Vorteile durch Verbesserung des regionalen Wegenetzes","BMS"]
[null,null,23,null,"Schaffung und Sicherung von Arbeitsplätzen","Hinz"]
[null,null,24,null,"Vermeidung örtlicher Hochwasserschäden","BMS"]
[null,null,25,null,"Sicherung von Kulturdenkmälern","Hinz"]
[null,null,26,null,"Anlage von Erholungseinrichtungen","BMS/Hinz"]
[null,null,27,null,"Vorteile für den Rad- und Wanderwegetourismus","BMS"]
[null,null,28,null,"Entwicklung der Energieversorgung (Windenergie)","Hinz"]
[null,null,29,"Eigentums- und Rechtssicherheit, Vorteile für die öffentliche Hand (Bund-Land-Kommune)","Verbesserung der Qualität des Liegenschaftskatasters, Grenzsicherheit bei den Eigentümern","BMS"]
[null,null,30,null,"Anregung des Grundstücksmarktes und Gebühreneinsparungen","Hinz"]
[null,null,31,null,"Verringerung der Bürokratiekosten in der Landwirtschaft","BMS"]
[null,null,32,null,"Kostenersparnisse bei der Unterhaltung gemeinschaftlicher Anlagen","BMS"]
[null,null,33,null,"Effizientere Fachberatung, Wissens- und Motivationsgewinn der Privatwaldeigentümer","Hinz"]
[null,null,34,null,"Verringerung von Verwaltungsaufwand im Kataster- und Grundbuchamt","BMS/Hinz"]